Workbook

Sheet Global data DD.MM.YY
A1: Snow Pits Dome Fuji 2018/2019 | B1: Snow Stratigraphy, density and temp data
A2: Potential use of the pit SP: Snow Physic R: Radar ST: Satellite MB: Mass Balance | B2: SP
A3: Closest Point on Japanese Traverse | B3: MD302 | D3: Data recorded | F3: YES | G3: NO | H3: Where is it
A4: South position (decimal) | B4: 73.456443 | D4: Snow Stratigraphy | F4: X | H4: on this sheet
A5: East position (decimal) | B5: 43.209434 | D5: Snow SSA | F5: X | H5: here and sheet SSA for details
A6: Altitude (m a.s.l.) | D6: Snow Albedo | F6: X | H6: on albedo, just a test, useless
A7: Date (DD.MM.YY) | B7: 28.11.18 | D7: SMP | F7: X | H7: on smp, test also, 5 profiles
A8: Time UTC start | B8: 18:00:00 | D8: Surface snow SSA, density, temp Variability | F8: X | H8: on snow surface variability sheet
A9: Time UTC end | B9: 19:30:00
A10: Observer(s) | B10: JCG
A11: General comments (weather, clouds, other remarks) | B11: Clear blue sky, wind picking in the afternoon and 8-10 m sec, not much blowing snow as the surface is very hard. No cloud at all during the day. The pit was dug with PB and then refresh with shovel.
A13: Temperatures:
A14: Air temp 1m [-°C] | B14: 28.3
A15: Air/snow temp [-°C] (informative) | B15: 35.1
A16: Snow bottom pit temp [-°C] | B16: 37.6
A17: General comments on snow pit (surface, sastrugi, others) | B17: a lot of sastrugi in the area, about 20 to 50 cm high, very hard layer on top and at about 30 cm depth. A few layer of snow snow below hadr layers, but most of the snow is P or K. 5cm sastrugi on top, windpack type, density 420 and K hardness, no SSA
D18: Cutter 100 cc weight | E18: 141 | F18: Cutter 36 cc weight | G18: 111
A19: Total Thickness [cm] | D19: Cutter 250 cc weight
A20: Snow Thickness: | B20: [All distances measured from snow/atmosphere interface, 0 is at the top]
A21: Layer, from top to bottom | B21: Top [cm] | C21: Bottom [cm] | D21: Height top from surface (air snow =0) | E21: Height bottom from surface (air snow = 0) | F21: Depth cm of density measurement | G21: Original weight (cutter + snow) | H21: Density snow kg.m-3 | I21: Depth cm of temperature | J21: Temperature [-°C] | K21: Snow Type 1 | L21: % observation visual | M21: Diameter min [mm] | N21: Diameter max [mm] | O21: Snow Type 2 | P21: % observation visual | Q21: Diameter min [mm] | R21: Diameter max [mm] | S21: SSA m2 kg-1 | T21: Hardness (hand test) | U21: Comments
A22: 1 | B22: 70 | C22: 67 | D22: =0 -> 0 | E22: =(B22-C22) -> 3 | H22: 410 | I22: 70 | J22: 31.2 | K22: mixed | M22: 0.2 | N22: 0.2 | S22: ='SSA Data details'!E22 -> 51.7 | T22: K
A23: 2 | B23: 67 | C23: 60 | D23: =E22 -> 3 | E23: =$B$22-C23 -> 10 | H23: 340 | I23: 67 | J23: 31.6 | K23: windpack | M23: 0.1 | N23: 0.1 | S23: ='SSA Data details'!E23 -> 33.2 | T23: P
A24: 3 | B24: 60 | C24: 52 | D24: =E23 -> 10 | E24: =$B$22-C24 -> 18 | H24: 400 | I24: 60 | J24: 34.8 | K24: windpack | M24: 0.1 | N24: 0.2 | S24: ='SSA Data details'!E24 -> 36.6 | T24: K
A25: 5 | B25: 52 | C25: 40 | D25: =E24 -> 18 | E25: =$B$22-C25 -> 30 | H25: 410 | I25: 52 | J25: 34.9 | K25: mixed | M25: 0.2 | N25: 0.3 | S25: ='SSA Data details'!E25 -> 23.8 | T25: K
A26: 6 | B26: 40 | C26: 38 | D26: =E25 -> 30 | E26: =$B$22-C26 -> 32 | H26: =100*(11/(100/36)) -> 396 | I26: 40 | J26: 36.5 | K26: facets | M26: 1 | N26: 2 | T26: 1f
A27: 7 | B27: 38 | C27: 31 | D27: =E26 -> 32 | E27: =$B$22-C27 -> 39 | H27: 460 | I27: 38 | J27: 36.7 | K27: mixed | M27: 1 | N27: 1 | T27: P
A28: 8 | B28: 31 | C28: 25 | D28: =E27 -> 39 | E28: =$B$22-C28 -> 45 | H28: 340 | I28: 31 | J28: 37 | K28: factes/DH | M28: 1 | N28: 2 | T28: K
A29: 9 | B29: 25 | C29: 20 | D29: =E28 -> 45 | E29: =$B$22-C29 -> 50 | H29: 360 | I29: 25 | J29: 37.2 | K29: facets | M29: 1 | N29: 1 | T29: P
A30: 10 | I30: 20 | J30: 37.6
A31: 11
A32: 12
A33: 13
A34: 14
A35: 15

Sheet SSA Data details
A1: ='Global data DD.MM.YY'!A1 -> Snow Pits Dome Fuji 2018/2019 | B1: SSA data, exported from the ICE Cube software
A2: ='Global data DD.MM.YY'!A2 -> Potential use of the pit SP: Snow Physic R: Radar ST: Satellite MB: Mass Balance | B2: ='Global data DD.MM.YY'!B2 -> SP
A3: ='Global data DD.MM.YY'!A3 -> Closest Point on Japanese Traverse | B3: ='Global data DD.MM.YY'!B3 -> MD302
A4: ='Global data DD.MM.YY'!A4 -> South position (decimal) | B4: ='Global data DD.MM.YY'!B4 -> 73.456443
A5: ='Global data DD.MM.YY'!A5 -> East position (decimal) | B5: ='Global data DD.MM.YY'!B5 -> 43.209434
A6: ='Global data DD.MM.YY'!A6 -> Altitude (m a.s.l.) | B6: ='Global data DD.MM.YY'!B6 -> 0
A7: ='Global data DD.MM.YY'!A7 -> Date (DD.MM.YY) | B7: ='Global data DD.MM.YY'!B7 -> 28.11.18
A8: ='Global data DD.MM.YY'!A8 -> Time UTC start | B8: ='Global data DD.MM.YY'!B8 -> 18:00:00
A9: ='Global data DD.MM.YY'!A9 -> Time UTC end | B9: ='Global data DD.MM.YY'!B9 -> 19:30:00
A10: ='Global data DD.MM.YY'!A10 -> Observer(s) | B10: ='Global data DD.MM.YY'!B10 -> JCG
A11: ='Global data DD.MM.YY'!A11 -> General comments (weather, clouds, other remarks) | B11: Windy 8-10 m sec, clear sky, no clouds at all
A13: Sample number | B13: Series | C13: Sample signal | D13: Reflectance | E13: Specific surface area (SSA), m2.kg-1 | F13: Comment | G13: SMP data
A14: 1 | B14: Surface random over pit, top snow layer | C14: 518.7 | D14: 50.31 | E14: 49.2 | G14: =AVERAGE('SMP Data details'!Q15:Q23) -> 6.961020235
A15: 2 | B15: Surface random over pit, top snow layer | C15: 475.5 | D15: 47.02 | E15: 41.1
A16: 3 | B16: Surface random over pit, top snow layer | C16: 545.5 | D16: 52.27 | E16: 54.8
A17: 4 | B17: Sur albedo spot 1, top 1 cm | C17: 300.5 | D17: 31.74 | E17: 17.9 | F17: smp data fuji 01 | G17: =AVERAGE('SMP Data details'!C15:C23) -> 4.90667636
A18: 5 | B18: Sur albedo spot 1, 1-2 cm | C18: 343.3 | D18: 35.8 | E18: 22.3 | F18: smp data fuji 01 | G18: =AVERAGE('SMP Data details'!C24:C31) -> 5.089817339
A19: 6 | B19: Sur albedo spot 1, 2-3 cm | C19: 332.3 | D19: 34.78 | E19: 21.1 | F19: smp data fuji 01 | G19: =AVERAGE('SMP Data details'!C32:C39) -> 6.425054526
A20: 7 | B20: Sur albedo spot 1, 3-4 cm | C20: 342 | D20: 35.68 | E20: 22.1 | F20: smp data fuji 01 | G20: =AVERAGE('SMP Data details'!C40:C47) -> 7.112200109
A21: 8 | B21: Sur albedo spot 1, 4-5 cm | C21: 346.1 | D21: 36.06 | E21: 22.6 | F21: smp data fuji 01 | G21: =AVERAGE('SMP Data details'!C48:C55) -> 7.100327154
A22: 9 | B22: Snow pit 70-67 cm | C22: 530.9 | D22: 51.21 | E22: 51.7 | F22: smp data fuji 02, 04, 05, 06 | G22: =AVERAGE('SMP Data details'!Q15:Q39) -> 6.974342421
A23: 10 | B23: Snow pit 67-60 cm | C23: 427 | D23: 43.12 | E23: 33.2 | F23: smp data fuji 02, 04, 05, 06 | G23: =AVERAGE('SMP Data details'!Q39:Q95) -> 7.470485374
A24: 11 | B24: Snow pit 60-52 cm | C24: 449 | D24: 44.92 | E24: 36.6 | F24: smp data fuji 02, 04, 05, 06 | G24: =AVERAGE('SMP Data details'!Q95:Q159) -> 9.584092777
A25: 12 | B25: Snow pit 52-40 cm | C25: 357 | D25: 37.05 | E25: 23.8 | F25: smp data fuji 02, 04, 05, 06

Sheet SMP Data details
A1: ='Global data DD.MM.YY'!A1 -> Snow Pits Dome Fuji 2018/2019 | B1: SSA data, exported from the ICE Cube software
A2: ='Global data DD.MM.YY'!A2 -> Potential use of the pit SP: Snow Physic R: Radar ST: Satellite MB: Mass Balance | B2: ='Global data DD.MM.YY'!B2 -> SP
A3: ='Global data DD.MM.YY'!A3 -> Closest Point on Japanese Traverse | B3: ='Global data DD.MM.YY'!B3 -> MD302
A4: ='Global data DD.MM.YY'!A4 -> South position (decimal) | B4: ='Global data DD.MM.YY'!B4 -> 73.456443
A5: ='Global data DD.MM.YY'!A5 -> East position (decimal) | B5: ='Global data DD.MM.YY'!B5 -> 43.209434
A6: ='Global data DD.MM.YY'!A6 -> Altitude (m a.s.l.) | B6: ='Global data DD.MM.YY'!B6 -> 0
A7: ='Global data DD.MM.YY'!A7 -> Date (DD.MM.YY) | B7: ='Global data DD.MM.YY'!B7 -> 28.11.18
A8: ='Global data DD.MM.YY'!A8 -> Time UTC start | B8: ='Global data DD.MM.YY'!B8 -> 18:00:00
A9: ='Global data DD.MM.YY'!A9 -> Time UTC end | B9: ='Global data DD.MM.YY'!B9 -> 19:30:00
A10: ='Global data DD.MM.YY'!A10 -> Observer(s) | B10: ='Global data DD.MM.YY'!B10 -> JCG
A11: ='Global data DD.MM.YY'!A11 -> General comments (weather, clouds, other remarks)
A12: Name and info | B12: Long | C12: Lat | D12: Name and info | E12: Long | F12: Lat | G12: Name and info | H12: Long | I12: Lat | J12: Name and info | K12: Long | L12: Lat | M12: Name and info | N12: Long | O12: Lat | P12: Average density Fuji 2-4-5-6 | Q12: Average SSA Fuji 2-4-5-6
A13: Fuji 01, close to albedo spot 1 | B13: Non registered | C13: Non registered | D13: Fuji 02, close to SSA jc pit | E13: Non registered | F13: Non registered | G13: Fuji 04, close to SSA jc pit | H13: Non registered | I13: Non registered | J13: Fuji 05, close to SSA jc pit | K13: Non registered | L13: Non registered | M13: Fuji 06, close to SSA jc pit | N13: Non registered | O13: Non registered
A14: distance [mm] | B14: P2015_density [kg/m^3] | C14: P2015_ssa [m^2/m^3] | D14: distance [mm] | E14: P2015_density [kg/m^3] | F14: SSA m2 kg-1 | G14: distance [mm] | H14: P2015_density [kg/m^3] | I14: SSA m2 kg-1 | J14: distance [mm] | K14: P2015_density [kg/m^3] | L14: ssa m2 kg-1 | M14: distance [mm] | N14: P2015_density [kg/m^3] | O14: ssa m2 kg-1
A15: 0 | B15: 468.9997 | C15: 6.765539804 | D15: 0 | E15: 415.9078 | F15: 9.661832061 | G15: 0 | H15: 298.5713 | I15: 3.824427481 | J15: 0 | K15: 443.7577 | L15: 9.124100327 | M15: 0 | N15: 310.5057 | O15: 7.723336968 | P15: =AVERAGE(E15,H15,K15,N15) -> 367.185625 | Q15: =AVERAGE(F15,I15,L15,O15) -> 7.583424209
A16: 1.25 | B16: 394.7728 | C16: 6.132933479 | D16: 1.25 | E16: 425.2999 | F16: 7.827371865 | G16: 1.25 | H16: 195.1834 | I16: 6.07044711 | J16: 1.25 | K16: 446.4067 | L16: 7.65736096 | M16: 1.25 | N16: 374.2761 | O16: 8.004907306 | P16: =AVERAGE(E16,H16,K16,N16) -> 360.291525 | Q16: =AVERAGE(F16,I16,L16,O16) -> 7.39002181
A17: 2.5 | B17: 558.1365 | C17: 5.066848419 | D17: 2.5 | E17: 507.055 | F17: 7.226172301 | G17: 2.5 | H17: 471.8743 | I17: 7.308615049 | J17: 2.5 | K17: 527.1803 | L17: 7.093565976 | M17: 2.5 | N17: 486.7209 | O17: 7.82519084 | P17: =AVERAGE(E17,H17,K17,N17) -> 498.207625 | Q17: =AVERAGE(F17,I17,L17,O17) -> 7.363386041
A18: 3.75 | B18: 573.8091 | C18: 4.825954198 | D18: 3.75 | E18: 579.4605 | F18: 7.063576881 | G18: 3.75 | H18: 559.8208 | I18: 7.147437296 | J18: 3.75 | K18: 581.2902 | L18: 7.091166848 | M18: 3.75 | N18: 540.2552 | O18: 7.375354417 | P18: =AVERAGE(E18,H18,K18,N18) -> 565.206675 | Q18: =AVERAGE(F18,I18,L18,O18) -> 7.16938386
A19: 5 | B19: 581.9064 | C19: 4.946019629 | D19: 5 | E19: 590.8664 | F19: 6.75997819 | G19: 5 | H19: 587.0304 | I19: 7.044929117 | J19: 5 | K19: 584.675 | L19: 6.958451472 | M19: 5 | N19: 579.0013 | O19: 7.082333697 | P19: =AVERAGE(E19,H19,K19,N19) -> 585.393275 | Q19: =AVERAGE(F19,I19,L19,O19) -> 6.961423119
A20: 6.25 | B20: 646.6387 | C20: 4.554961832 | D20: 6.25 | E20: 608.5495 | F20: 6.486586696 | G20: 6.25 | H20: 591.8167 | I20: 6.715267176 | J20: 6.25 | K20: 595.8081 | L20: 6.736205016 | M20: 6.25 | N20: 593.2223 | O20: 6.876226827 | P20: =AVERAGE(E20,H20,K20,N20) -> 597.34915 | Q20: =AVERAGE(F20,I20,L20,O20) -> 6.703571429
A21: 7.5 | B21: 675.7776 | C21: 4.146019629 | D21: 7.5 | E21: 620.2349 | F21: 6.369138495 | G21: 7.5 | H21: 605.3083 | I21: 6.447001091 | J21: 7.5 | K21: 606.7933 | L21: 6.635877863 | M21: 7.5 | N21: 596.8737 | O21: 6.671755725 | P21: =AVERAGE(E21,H21,K21,N21) -> 607.30255 | Q21: =AVERAGE(F21,I21,L21,O21) -> 6.530943293
A22: 8.75 | B22: 707.3158 | C22: 3.777644493 | D22: 8.75 | E22: 625.8428 | F22: 6.328462377 | G22: 8.75 | H22: 614.0725 | I22: 6.342202835 | J22: 8.75 | K22: 611.835 | L22: 6.547001091 | M22: 8.75 | N22: 599.8243 | O22: 6.554961832 | P22: =AVERAGE(E22,H22,K22,N22) -> 612.89365 | Q22: =AVERAGE(F22,I22,L22,O22) -> 6.443157034
A23: 10 | B23: 695.3819 | C23: 3.944165758 | D23: 10 | E23: 625.9946 | F23: 6.279280262 | G23: 10 | H23: 607.8092 | I23: 6.441439477 | J23: 10 | K23: 595.5978 | L23: 6.653653217 | M23: 10 | N23: 608.1053 | O23: 6.641112323 | P23: =AVERAGE(E23,H23,K23,N23) -> 609.376725 | Q23: =AVERAGE(F23,I23,L23,O23) -> 6.50387132
A24: 11.25 | B24: 679.3879 | C24: 4.19738277 | D24: 11.25 | E24: 625.6995 | F24: 6.237077426 | G24: 11.25 | H24: 611.027 | I24: 6.39476554 | J24: 11.25 | K24: 606.3309 | L24: 6.840458015 | M24: 11.25 | N24: 602.5169 | O24: 6.753544166 | P24: =AVERAGE(E24,H24,K24,N24) -> 611.393575 | Q24: =AVERAGE(F24,I24,L24,O24) -> 6.556461287
A25: 12.5 | B25: 656.7226 | C25: 4.513522356 | D25: 12.5 | E25: 619.0735 | F25: 6.340785169 | G25: 12.5 | H25: 622.4195 | I25: 6.346346783 | J25: 12.5 | K25: 602.3509 | L25: 6.878516903 | M25: 12.5 | N25: 592.8231 | O25: 6.759323882 | P25: =AVERAGE(E25,H25,K25,N25) -> 609.16675 | Q25: =AVERAGE(F25,I25,L25,O25) -> 6.581243184
A26: 13.75 | B26: 656.4464 | C26: 4.719520174 | D26: 13.75 | E26: 616.331 | F26: 6.457906216 | G26: 13.75 | H26: 585.0538 | I26: 6.533151581 | J26: 13.75 | K26: 581.7792 | L26: 7.025954198 | M26: 13.75 | N26: 600.3784 | O26: 6.645474373 | P26: =AVERAGE(E26,H26,K26,N26) -> 595.8856 | Q26: =AVERAGE(F26,I26,L26,O26) -> 6.665621592
A27: 15 | B27: 622.5534 | C27: 5.088004362 | D27: 15 | E27: 612.3293 | F27: 6.464013086 | G27: 15 | H27: 590.071 | I27: 6.916466739 | J27: 15 | K27: 587.2114 | L27: 7.123009815 | M27: 15 | N27: 615.7132 | O27: 6.589312977 | P27: =AVERAGE(E27,H27,K27,N27) -> 601.331225 | Q27: =AVERAGE(F27,I27,L27,O27) -> 6.773200654
A28: 16.25 | B28: 614.748 | C28: 5.460632497 | D28: 16.25 | E28: 613.1044 | F28: 6.465648855 | G28: 16.25 | H28: 594.306 | I28: 6.937840785 | J28: 16.25 | K28: 592.6044 | L28: 6.905670665 | M28: 16.25 | N28: 616.4744 | O28: 6.591494002 | P28: =AVERAGE(E28,H28,K28,N28) -> 604.1223 | Q28: =AVERAGE(F28,I28,L28,O28) -> 6.725163577
A29: 17.5 | B29: 632.1728 | C29: 5.471973828 | D29: 17.5 | E29: 598.6412 | F29: 6.617557252 | G29: 17.5 | H29: 576.3145 | I29: 6.807633588 | J29: 17.5 | K29: 599.2576 | L29: 6.866303162 | M29: 17.5 | N29: 609.9072 | O29: 6.657251908 | P29: =AVERAGE(E29,H29,K29,N29) -> 596.030125 | Q29: =AVERAGE(F29,I29,L29,O29) -> 6.737186478
A30: 18.75 | B30: 628.0558 | C30: 5.572628135 | D30: 18.75 | E30: 590.9585 | F30: 6.862268266 | G30: 18.75 | H30: 562.2364 | I30: 6.908615049 | J30: 18.75 | K30: 600.5004 | L30: 6.965321701 | M30: 18.75 | N30: 610.2901 | O30: 6.718102508 | P30: =AVERAGE(E30,H30,K30,N30) -> 590.99635 | Q30: =AVERAGE(F30,I30,L30,O30) -> 6.863576881
A31: 20 | B31: 632.9389 | C31: 5.694874591 | D31: 20 | E31: 598.3887 | F31: 6.847328244 | G31: 20 | H31: 573.5098 | I31: 7.183206107 | J31: 20 | K31: 602.2126 | L31: 6.90174482 | M31: 20 | N31: 606.1038 | O31: 6.66521265 | P31: =AVERAGE(E31,H31,K31,N31) -> 595.053725 | Q31: =AVERAGE(F31,I31,L31,O31) -> 6.899372955
A32: 21.25 | B32: 628.8507 | C32: 5.782224646 | D32: 21.25 | E32: 603.1553 | F32: 6.857579062 | G32: 21.25 | H32: 579.3426 | I32: 7.114067612 | J32: 21.25 | K32: 568.9312 | L32: 6.869029444 | M32: 21.25 | N32: 607.4269 | O32: 6.529989095 | P32: =AVERAGE(E32,H32,K32,N32) -> 589.714 | Q32: =AVERAGE(F32,I32,L32,O32) -> 6.842666303
A33: 22.5 | B33: 624.5373 | C33: 5.80348964 | D33: 22.5 | E33: 595.2228 | F33: 6.906761178 | G33: 22.5 | H33: 577.7964 | I33: 7.003707743 | J33: 22.5 | K33: 558.5008 | L33: 7.390948746 | M33: 22.5 | N33: 618.1697 | O33: 6.473827699 | P33: =AVERAGE(E33,H33,K33,N33) -> 587.422425 | Q33: =AVERAGE(F33,I33,L33,O33) -> 6.943811341
A34: 23.75 | B34: 607.1445 | C34: 5.923118866 | D34: 23.75 | E34: 572.3206 | F34: 7.059869138 | G34: 23.75 | H34: 574.5414 | I34: 7.178080698 | J34: 23.75 | K34: 563.4246 | L34: 7.82082879 | M34: 23.75 | N34: 609.0584 | O34: 6.493238822 | P34: =AVERAGE(E34,H34,K34,N34) -> 579.83625 | Q34: =AVERAGE(F34,I34,L34,O34) -> 7.138004362
A35: 25 | B35: 580.8369 | C35: 6.358560523 | D35: 25 | E35: 566.1169 | F35: 7.506434024 | G35: 25 | H35: 588.3798 | I35: 7.346782988 | J35: 25 | K35: 563.8689 | L35: 8.027371865 | M35: 25 | N35: 599.0357 | O35: 6.651035987 | P35: =AVERAGE(E35,H35,K35,N35) -> 579.350325 | Q35: =AVERAGE(F35,I35,L35,O35) -> 7.382906216
A36: 26.25 | B36: 584.5837 | C36: 6.649727372 | D36: 26.25 | E36: 574.0996 | F36: 7.778625954 | G36: 26.25 | H36: 578.664 | I36: 7.163904035 | J36: 26.25 | K36: 563.1553 | L36: 8.065866957 | M36: 26.25 | N36: 609.1686 | O36: 6.815812432 | P36: =AVERAGE(E36,H36,K36,N36) -> 581.271875 | Q36: =AVERAGE(F36,I36,L36,O36) -> 7.456052345
A37: 27.5 | B37: 580.7754 | C37: 6.830970556 | D37: 27.5 | E37: 575.9197 | F37: 7.742093784 | G37: 27.5 | H37: 575.8464 | I37: 7.210250818 | J37: 27.5 | K37: 565.7139 | L37: 7.910577972 | M37: 27.5 | N37: 608.5201 | O37: 6.77306434 | P37: =AVERAGE(E37,H37,K37,N37) -> 581.500025 | Q37: =AVERAGE(F37,I37,L37,O37) -> 7.408996728
A38: 28.75 | B38: 583.4466 | C38: 6.979280262 | D38: 28.75 | E38: 569.2548 | F38: 7.64438386 | G38: 28.75 | H38: 586.7878 | I38: 7.360523446 | J38: 28.75 | K38: 574.5477 | L38: 7.795856052 | M38: 28.75 | N38: 603.3507 | O38: 6.718211559 | P38: =AVERAGE(E38,H38,K38,N38) -> 583.48525 | Q38: =AVERAGE(F38,I38,L38,O38) -> 7.37974373
A39: 30 | B39: 564.0303 | C39: 7.07306434 | D39: 30 | E39: 560.7583 | F39: 7.770338059 | G39: 30 | H39: 589.2484 | I39: 7.257906216 | J39: 30 | K39: 577.0519 | L39: 7.646237732 | M39: 30 | N39: 600.2949 | O39: 6.747001091 | P39: =AVERAGE(E39,H39,K39,N39) -> 581.838375 | Q39: =AVERAGE(F39,I39,L39,O39) -> 7.355370774
A40: 31.25 | B40: 560.6597 | C40: 7.348964013 | D40: 31.25 | E40: 560.6041 | F40: 7.809814613 | G40: 31.25 | H40: 590.682 | I40: 7.274591058 | J40: 31.25 | K40: 581.7008 | L40: 7.570119956 | M40: 31.25 | N40: 601.7257 | O40: 6.860305344 | P40: =AVERAGE(E40,H40,K40,N40) -> 583.67815 | Q40: =AVERAGE(F40,I40,L40,O40) -> 7.378707743
A41: 32.5 | B41: 568.4511 | C41: 7.499672846 | D41: 32.5 | E41: 569.2345 | F41: 7.669792803 | G41: 32.5 | H41: 567.9446 | I41: 7.462486369 | J41: 32.5 | K41: 574.122 | L41: 7.558015267 | M41: 32.5 | N41: 597.9179 | O41: 6.962813522 | P41: =AVERAGE(E41,H41,K41,N41) -> 577.30475 | Q41: =AVERAGE(F41,I41,L41,O41) -> 7.41327699
A42: 33.75 | B42: 566.286 | C42: 7.378080698 | D42: 33.75 | E42: 555.751 | F42: 7.696401309 | G42: 33.75 | H42: 571.6829 | I42: 7.802726281 | J42: 33.75 | K42: 575.4351 | L42: 7.673827699 | M42: 33.75 | N42: 591.6743 | O42: 7.067284624 | P42: =AVERAGE(E42,H42,K42,N42) -> 573.635825 | Q42: =AVERAGE(F42,I42,L42,O42) -> 7.560059978
A43: 35 | B43: 564.9739 | C43: 7.014176663 | D43: 35 | E43: 565.6822 | F43: 8.105997819 | G43: 35 | H43: 560.6553 | I43: 7.91308615 | J43: 35 | K43: 574.1961 | L43: 7.562159215 | M43: 35 | N43: 585.2105 | O43: 7.222900763 | P43: =AVERAGE(E43,H43,K43,N43) -> 571.436025 | Q43: =AVERAGE(F43,I43,L43,O43) -> 7.701035987
A44: 36.25 | B44: 582.3929 | C44: 6.768920393 | D44: 36.25 | E44: 561.8261 | F44: 8.038386041 | G44: 36.25 | H44: 562.1518 | I44: 8.079825518 | J44: 36.25 | K44: 578.0305 | L44: 7.359214831 | M44: 36.25 | N44: 573.08 | O44: 7.349836423 | P44: =AVERAGE(E44,H44,K44,N44) -> 568.7721 | Q44: =AVERAGE(F44,I44,L44,O44) -> 7.706815703
A45: 37.5 | B45: 581.7913 | C45: 6.834351145 | D45: 37.5 | E45: 561.4026 | F45: 7.815158124 | G45: 37.5 | H45: 562.396 | I45: 8.111668484 | J45: 37.5 | K45: 586.0037 | L45: 7.288549618 | M45: 37.5 | N45: 558.961 | O45: 6.979280262 | P45: =AVERAGE(E45,H45,K45,N45) -> 567.190825 | Q45: =AVERAGE(F45,I45,L45,O45) -> 7.548664122
A46: 38.75 | B46: 582.0468 | C46: 7.009051254 | D46: 38.75 | E46: 572.7936 | F46: 7.709705562 | G46: 38.75 | H46: 558.9188 | I46: 7.942420938 | J46: 38.75 | K46: 583.324 | L46: 7.107633588 | M46: 38.75 | N46: 597.9044 | O46: 6.72431843 | P46: =AVERAGE(E46,H46,K46,N46) -> 578.2352 | Q46: =AVERAGE(F46,I46,L46,O46) -> 7.371019629
A47: 40 | B47: 582.6079 | C47: 7.04438386 | D47: 40 | E47: 573.7418 | F47: 7.685823337 | G47: 40 | H47: 560.6695 | I47: 7.655179935 | J47: 40 | K47: 578.7205 | L47: 7.076772083 | M47: 40 | N47: 602.7383 | O47: 6.748964013 | P47: =AVERAGE(E47,H47,K47,N47) -> 578.967525 | Q47: =AVERAGE(F47,I47,L47,O47) -> 7.291684842
A48: 41.25 | B48: 566.454 | C48: 7.11134133 | D48: 41.25 | E48: 566.6076 | F48: 7.50436205 | G48: 41.25 | H48: 564.5672 | I48: 7.749291167 | J48: 41.25 | K48: 577.3756 | L48: 7.220937841 | M48: 41.25 | N48: 599.3117 | O48: 6.84351145 | P48: =AVERAGE(E48,H48,K48,N48) -> 576.965525 | Q48: =AVERAGE(F48,I48,L48,O48) -> 7.329525627
A49: 42.5 | B49: 564.014 | C49: 7.151690294 | D49: 42.5 | E49: 578.3444 | F49: 7.522355507 | G49: 42.5 | H49: 568.5993 | I49: 7.908396947 | J49: 42.5 | K49: 581.6427 | L49: 7.258887677 | M49: 42.5 | N49: 600.2233 | O49: 6.932933479 | P49: =AVERAGE(E49,H49,K49,N49) -> 582.202425 | Q49: =AVERAGE(F49,I49,L49,O49) -> 7.405643402
A50: 43.75 | B50: 578.471 | C50: 7.006215921 | D50: 43.75 | E50: 584.5393 | F50: 7.558778626 | G50: 43.75 | H50: 573.9012 | I50: 7.768484188 | J50: 43.75 | K50: 580.3368 | L50: 7.417666303 | M50: 43.75 | N50: 598.7949 | O50: 6.882878953 | P50: =AVERAGE(E50,H50,K50,N50) -> 584.39305 | Q50: =AVERAGE(F50,I50,L50,O50) -> 7.406952017
A51: 45 | B51: 579.1686 | C51: 6.901962923 | D51: 45 | E51: 583.364 | F51: 7.440676118 | G51: 45 | H51: 571.4072 | I51: 7.659432933 | J51: 45 | K51: 577.9276 | L51: 7.605997819 | M51: 45 | N51: 603.0345 | O51: 6.878189749 | P51: =AVERAGE(E51,H51,K51,N51) -> 583.933325 | Q51: =AVERAGE(F51,I51,L51,O51) -> 7.396074155
A52: 46.25 | B52: 568.741 | C52: 7.030643402 | D52: 46.25 | E52: 568.451 | F52: 7.117557252 | G52: 46.25 | H52: 571.5094 | I52: 7.471537623 | J52: 46.25 | K52: 577.719 | L52: 7.721264995 | M52: 46.25 | N52: 602.1156 | O52: 6.826281352 | P52: =AVERAGE(E52,H52,K52,N52) -> 579.94875 | Q52: =AVERAGE(F52,I52,L52,O52) -> 7.284160305
A53: 47.5 | B53: 581.5091 | C53: 7.159869138 | D53: 47.5 | E53: 584.9692 | F53: 6.707633588 | G53: 47.5 | H53: 581.5489 | I53: 7.291821156 | J53: 47.5 | K53: 578.1508 | L53: 7.747437296 | M53: 47.5 | N53: 602.5976 | O53: 6.819302072 | P53: =AVERAGE(E53,H53,K53,N53) -> 586.816625 | Q53: =AVERAGE(F53,I53,L53,O53) -> 7.141548528
A54: 48.75 | B54: 584.6293 | C54: 7.152126499 | D54: 48.75 | E54: 606.9111 | F54: 6.619193021 | G54: 48.75 | H54: 568.5242 | I54: 7.069247546 | J54: 48.75 | K54: 579.2721 | L54: 7.792039258 | M54: 48.75 | N54: 595.8798 | O54: 6.840676118 | P54: =AVERAGE(E54,H54,K54,N54) -> 587.6468 | Q54: =AVERAGE(F54,I54,L54,O54) -> 7.080288986
A55: 50 | B55: 574.7563 | C55: 7.288767721 | D55: 50 | E55: 598.4698 | F55: 6.717011996 | G55: 50 | H55: 572.0583 | I55: 7.149618321 | J55: 50 | K55: 576.0428 | L55: 7.753217012 | M55: 50 | N55: 596.0096 | O55: 6.853653217 | P55: =AVERAGE(E55,H55,K55,N55) -> 585.645125 | Q55: =AVERAGE(F55,I55,L55,O55) -> 7.118375136
A56: 51.25 | B56: 575.1245 | C56: 7.461286805 | D56: 51.25 | E56: 599.3846 | F56: 6.886804798 | G56: 51.25 | H56: 582.8642 | I56: 7.190948746 | J56: 51.25 | K56: 572.2901 | L56: 7.503380589 | M56: 51.25 | N56: 601.3233 | O56: 6.822900763 | P56: =AVERAGE(E56,H56,K56,N56) -> 588.96555 | Q56: =AVERAGE(F56,I56,L56,O56) -> 7.101008724
A57: 52.5 | B57: 573.85 | C57: 7.450054526 | D57: 52.5 | E57: 593.6214 | F57: 7.046346783 | G57: 52.5 | H57: 590.833 | I57: 7.031406761 | J57: 52.5 | K57: 585.4476 | L57: 7.24176663 | M57: 52.5 | N57: 604.8952 | O57: 6.665321701 | P57: =AVERAGE(E57,H57,K57,N57) -> 593.6993 | Q57: =AVERAGE(F57,I57,L57,O57) -> 6.996210469
A58: 53.75 | B58: 567.7082 | C58: 7.524536532 | D58: 53.75 | E58: 587.3256 | F58: 7.220719738 | G58: 53.75 | H58: 599.237 | I58: 6.978625954 | J58: 53.75 | K58: 593.5464 | L58: 7.223118866 | M58: 53.75 | N58: 614.6678 | O58: 6.44351145 | P58: =AVERAGE(E58,H58,K58,N58) -> 598.6942 | Q58: =AVERAGE(F58,I58,L58,O58) -> 6.966494002
A59: 55 | B59: 555.4134 | C59: 7.582988004 | D59: 55 | E59: 589.0594 | F59: 7.357033806 | G59: 55 | H59: 601.79 | I59: 6.931188659 | J59: 55 | K59: 588.5493 | L59: 7.153435115 | M59: 55 | N59: 619.3326 | O59: 6.370338059 | P59: =AVERAGE(E59,H59,K59,N59) -> 599.682825 | Q59: =AVERAGE(F59,I59,L59,O59) -> 6.952998909
A60: 56.25 | B60: 541.135 | C60: 7.677208288 | D60: 56.25 | E60: 567.2474 | F60: 7.292693566 | G60: 56.25 | H60: 599.9097 | I60: 6.90959651 | J60: 56.25 | K60: 580.5669 | L60: 7.113849509 | M60: 56.25 | N60: 607.3314 | O60: 6.520392585 | P60: =AVERAGE(E60,H60,K60,N60) -> 588.76385 | Q60: =AVERAGE(F60,I60,L60,O60) -> 6.959133043
A61: 57.5 | B61: 545.3074 | C61: 8.0608506 | D61: 57.5 | E61: 559.0342 | F61: 7.452562704 | G61: 57.5 | H61: 593.113 | I61: 7.025408942 | J61: 57.5 | K61: 565.5852 | L61: 7.337949836 | M61: 57.5 | N61: 606.5631 | O61: 6.684405671 | P61: =AVERAGE(E61,H61,K61,N61) -> 581.073875 | Q61: =AVERAGE(F61,I61,L61,O61) -> 7.125081788
A62: 58.75 | B62: 550.6274 | C62: 8.260305344 | D62: 58.75 | E62: 580.5076 | F62: 7.624863686 | G62: 58.75 | H62: 587.1004 | I62: 7.252344602 | J62: 58.75 | K62: 576.484 | L62: 7.605888768 | M62: 58.75 | N62: 600.9633 | O62: 6.76695747 | P62: =AVERAGE(E62,H62,K62,N62) -> 586.263825 | Q62: =AVERAGE(F62,I62,L62,O62) -> 7.312513631
A63: 60 | B63: 549.9926 | C63: 8.124536532 | D63: 60 | E63: 579.966 | F63: 7.619302072 | G63: 60 | H63: 577.5255 | I63: 7.446673937 | J63: 60 | K63: 571.3498 | L63: 7.724427481 | M63: 60 | N63: 595.7795 | O63: 6.903598691 | P63: =AVERAGE(E63,H63,K63,N63) -> 581.1552 | Q63: =AVERAGE(F63,I63,L63,O63) -> 7.423500545
A64: 61.25 | B64: 549.0102 | C64: 8.034351145 | D64: 61.25 | E64: 575.3851 | F64: 7.724536532 | G64: 61.25 | H64: 575.1152 | I64: 7.683642312 | J64: 61.25 | K64: 571.7166 | L64: 7.936968375 | M64: 61.25 | N64: 600.1181 | O64: 6.950926936 | P64: =AVERAGE(E64,H64,K64,N64) -> 580.58375 | Q64: =AVERAGE(F64,I64,L64,O64) -> 7.574018539
A65: 62.5 | B65: 545.0507 | C65: 8.18778626 | D65: 62.5 | E65: 573.2426 | F65: 7.693675027 | G65: 62.5 | H65: 577.8336 | I65: 7.775572519 | J65: 62.5 | K65: 571.483 | L65: 7.895419847 | M65: 62.5 | N65: 599.6969 | O65: 6.919411123 | P65: =AVERAGE(E65,H65,K65,N65) -> 580.564025 | Q65: =AVERAGE(F65,I65,L65,O65) -> 7.571019629
A66: 63.75 | B66: 543.2225 | C66: 8.160632497 | D66: 63.75 | E66: 582.1764 | F66: 7.616248637 | G66: 63.75 | H66: 575.1437 | I66: 7.841548528 | J66: 63.75 | K66: 568.6367 | L66: 7.885605234 | M66: 63.75 | N66: 597.6605 | O66: 6.961395856 | P66: =AVERAGE(E66,H66,K66,N66) -> 580.904325 | Q66: =AVERAGE(F66,I66,L66,O66) -> 7.576199564
A67: 65 | B67: 542.2279 | C67: 8.098691385 | D67: 65 | E67: 584.4005 | F67: 7.541548528 | G67: 65 | H67: 572.953 | I67: 7.898800436 | J67: 65 | K67: 569.7219 | L67: 8.042857143 | M67: 65 | N67: 596.7646 | O67: 7.10261723 | P67: =AVERAGE(E67,H67,K67,N67) -> 580.96 | Q67: =AVERAGE(F67,I67,L67,O67) -> 7.646455834
A68: 66.25 | B68: 542.972 | C68: 8.176444929 | D68: 66.25 | E68: 581.7629 | F68: 7.474372955 | G68: 66.25 | H68: 566.1575 | I68: 7.611123228 | J68: 66.25 | K68: 570.5037 | L68: 8.105452563 | M68: 66.25 | N68: 593.7692 | O68: 7.254307525 | P68: =AVERAGE(E68,H68,K68,N68) -> 578.048325 | Q68: =AVERAGE(F68,I68,L68,O68) -> 7.611314068
A69: 67.5 | B69: 547.3197 | C69: 8.296619411 | D69: 67.5 | E69: 574.2522 | F69: 7.590839695 | G69: 67.5 | H69: 583.2742 | I69: 7.616357688 | J69: 67.5 | K69: 568.6081 | L69: 8.085714286 | M69: 67.5 | N69: 591.0401 | O69: 7.309160305 | P69: =AVERAGE(E69,H69,K69,N69) -> 579.29365 | Q69: =AVERAGE(F69,I69,L69,O69) -> 7.650517993
A70: 68.75 | B70: 545.2254 | C70: 8.297273719 | D70: 68.75 | E70: 575.5282 | F70: 7.785059978 | G70: 68.75 | H70: 577.1082 | I70: 7.494002181 | J70: 68.75 | K70: 567.7782 | L70: 8.050817884 | M70: 68.75 | N70: 588.8393 | O70: 7.327262814 | P70: =AVERAGE(E70,H70,K70,N70) -> 577.313475 | Q70: =AVERAGE(F70,I70,L70,O70) -> 7.664285714
A71: 70 | B71: 543.8635 | C71: 8.307088332 | D71: 70 | E71: 571.8992 | F71: 7.892039258 | G71: 70 | H71: 584.6505 | I71: 7.393456925 | J71: 70 | K71: 565.5201 | L71: 8.094220284 | M71: 70 | N71: 588.3857 | O71: 7.353107961 | P71: =AVERAGE(E71,H71,K71,N71) -> 577.613875 | Q71: =AVERAGE(F71,I71,L71,O71) -> 7.683206107
A72: 71.25 | B72: 541.6148 | C72: 8.315921483 | D72: 71.25 | E72: 571.0831 | F72: 8.038386041 | G72: 71.25 | H72: 586.9529 | I72: 7.416248637 | J72: 71.25 | K72: 566.3486 | L72: 8.139694656 | M72: 71.25 | N72: 586.0792 | O72: 7.347001091 | P72: =AVERAGE(E72,H72,K72,N72) -> 577.61595 | Q72: =AVERAGE(F72,I72,L72,O72) -> 7.735332606
A73: 72.5 | B73: 523.4385 | C73: 8.142311887 | D73: 72.5 | E73: 567.5658 | F73: 8.150054526 | G73: 72.5 | H73: 588.9828 | I73: 7.396183206 | J73: 72.5 | K73: 563.8616 | L73: 8.16434024 | M73: 72.5 | N73: 581.6455 | O73: 7.184078517 | P73: =AVERAGE(E73,H73,K73,N73) -> 575.513925 | Q73: =AVERAGE(F73,I73,L73,O73) -> 7.723664122
A74: 73.75 | B74: 516.9009 | C74: 8.250708833 | D74: 73.75 | E74: 559.7551 | F74: 8.145692475 | G74: 73.75 | H74: 581.445 | I74: 7.356052345 | J74: 73.75 | K74: 565.7164 | L74: 8.232388222 | M74: 73.75 | N74: 594.0628 | O74: 7.083097056 | P74: =AVERAGE(E74,H74,K74,N74) -> 575.244825 | Q74: =AVERAGE(F74,I74,L74,O74) -> 7.704307525
A75: 75 | B75: 534.763 | C75: 8.468811341 | D75: 75 | E75: 555.4955 | F75: 8.223227917 | G75: 75 | H75: 572.5314 | I75: 7.580916031 | J75: 75 | K75: 560.3253 | L75: 8.129770992 | M75: 75 | N75: 597.0127 | O75: 7.063904035 | P75: =AVERAGE(E75,H75,K75,N75) -> 571.341225 | Q75: =AVERAGE(F75,I75,L75,O75) -> 7.749454744
A76: 76.25 | B76: 529.0347 | C76: 8.054634678 | D76: 76.25 | E76: 558.1365 | F76: 8.351690294 | G76: 76.25 | H76: 576.2987 | I76: 7.77393675 | J76: 76.25 | K76: 556.0112 | L76: 8.163904035 | M76: 76.25 | N76: 596.8315 | O76: 7.076117775 | P76: =AVERAGE(E76,H76,K76,N76) -> 571.819475 | Q76: =AVERAGE(F76,I76,L76,O76) -> 7.841412214
A77: 77.5 | B77: 540.0637 | C77: 7.860305344 | D77: 77.5 | E77: 557.4873 | F77: 8.30087241 | G77: 77.5 | H77: 570.5864 | I77: 7.924754635 | J77: 77.5 | K77: 559.3652 | L77: 8.181570338 | M77: 77.5 | N77: 594.2966 | O77: 7.134678299 | P77: =AVERAGE(E77,H77,K77,N77) -> 570.433875 | Q77: =AVERAGE(F77,I77,L77,O77) -> 7.88546892
A78: 78.75 | B78: 549.1072 | C78: 7.655398037 | D78: 78.75 | E78: 558.4266 | F78: 8.204798255 | G78: 78.75 | H78: 572.0251 | I78: 8.0304253 | J78: 78.75 | K78: 566.184 | L78: 8.178953108 | M78: 78.75 | N78: 594.8319 | O78: 7.161941112 | P78: =AVERAGE(E78,H78,K78,N78) -> 572.8669 | Q78: =AVERAGE(F78,I78,L78,O78) -> 7.894029444
A79: 80 | B79: 561.8761 | C79: 7.39476554 | D79: 80 | E79: 557.9579 | F79: 8.228026172 | G79: 80 | H79: 565.112 | I79: 8.044274809 | J79: 80 | K79: 557.1413 | L79: 8.063576881 | M79: 80 | N79: 597.1427 | O79: 7.099563795 | P79: =AVERAGE(E79,H79,K79,N79) -> 569.338475 | Q79: =AVERAGE(F79,I79,L79,O79) -> 7.858860414
A80: 81.25 | B80: 560.9079 | C80: 7.039258451 | D80: 81.25 | E80: 557.8206 | F80: 8.122464558 | G80: 81.25 | H80: 567.0843 | I80: 8.215158124 | J80: 81.25 | K80: 560.7075 | L80: 7.899018539 | M80: 81.25 | N80: 600.6081 | O80: 7.000109051 | P80: =AVERAGE(E80,H80,K80,N80) -> 571.555125 | Q80: =AVERAGE(F80,I80,L80,O80) -> 7.809187568
A81: 82.5 | B81: 585.1834 | C81: 6.795747001 | D81: 82.5 | E81: 567.5581 | F81: 8.045474373 | G81: 82.5 | H81: 565.818 | I81: 8.158778626 | J81: 82.5 | K81: 574.4054 | L81: 7.895528899 | M81: 82.5 | N81: 595.8112 | O81: 7.0217012 | P81: =AVERAGE(E81,H81,K81,N81) -> 575.898175 | Q81: =AVERAGE(F81,I81,L81,O81) -> 7.780370774
A82: 83.75 | B82: 590.8908 | C82: 6.730207197 | D82: 83.75 | E82: 568.308 | F82: 7.85648855 | G82: 83.75 | H82: 562.6043 | I82: 8.160523446 | J82: 83.75 | K82: 576.7958 | L82: 7.75387132 | M82: 83.75 | N82: 591.0739 | O82: 7.003816794 | P82: =AVERAGE(E82,H82,K82,N82) -> 574.6955 | Q82: =AVERAGE(F82,I82,L82,O82) -> 7.693675027
A83: 85 | B83: 589.882 | C83: 6.62606325 | D83: 85 | E83: 572.9563 | F83: 7.869247546 | G83: 85 | H83: 555.0145 | I83: 8.22344602 | J83: 85 | K83: 581.0354 | L83: 7.740348964 | M83: 85 | N83: 589.8785 | O83: 6.97393675 | P83: =AVERAGE(E83,H83,K83,N83) -> 574.721175 | Q83: =AVERAGE(F83,I83,L83,O83) -> 7.70174482
A84: 86.25 | B84: 587.5837 | C84: 6.360305344 | D84: 86.25 | E84: 568.9494 | F84: 7.889422028 | G84: 86.25 | H84: 556.2504 | I84: 8.222137405 | J84: 86.25 | K84: 578.7058 | L84: 7.72431843 | M84: 86.25 | N84: 593.0771 | O84: 7.183860414 | P84: =AVERAGE(E84,H84,K84,N84) -> 574.245675 | Q84: =AVERAGE(F84,I84,L84,O84) -> 7.754934569
A85: 87.5 | B85: 605.4418 | C85: 6.003053435 | D85: 87.5 | E85: 569.0893 | F85: 7.910250818 | G85: 87.5 | H85: 560.906 | I85: 8.235114504 | J85: 87.5 | K85: 581.3874 | L85: 7.639367503 | M85: 87.5 | N85: 594.7522 | O85: 7.279607415 | P85: =AVERAGE(E85,H85,K85,N85) -> 576.533725 | Q85: =AVERAGE(F85,I85,L85,O85) -> 7.76608506
A86: 88.75 | B86: 619.6411 | C86: 5.828789531 | D86: 88.75 | E86: 569.5858 | F86: 7.822682661 | G86: 88.75 | H86: 561.1066 | I86: 8.258778626 | J86: 88.75 | K86: 577.0582 | L86: 7.397818975 | M86: 88.75 | N86: 593.3723 | O86: 7.201635769 | P86: =AVERAGE(E86,H86,K86,N86) -> 575.280725 | Q86: =AVERAGE(F86,I86,L86,O86) -> 7.670229008
A87: 90 | B87: 557.5783 | C87: 5.570119956 | D87: 90 | E87: 573.5381 | F87: 7.624863686 | G87: 90 | H87: 560.1953 | I87: 8.194002181 | J87: 90 | K87: 588.5496 | L87: 7.288440567 | M87: 90 | N87: 597.4638 | O87: 7.076008724 | P87: =AVERAGE(E87,H87,K87,N87) -> 579.9367 | Q87: =AVERAGE(F87,I87,L87,O87) -> 7.54582879
A88: 91.25 | B88: 536.2553 | C88: 5.26782988 | D88: 91.25 | E88: 575.3246 | F88: 7.386477644 | G88: 91.25 | H88: 566.6304 | I88: 8.267284624 | J88: 91.25 | K88: 589.5631 | L88: 7.32519084 | M88: 91.25 | N88: 568.4231 | O88: 7.018211559 | P88: =AVERAGE(E88,H88,K88,N88) -> 574.9853 | Q88: =AVERAGE(F88,I88,L88,O88) -> 7.499291167
A89: 92.5 | B89: 614.0017 | C89: 4.600981461 | D89: 92.5 | E89: 586.2019 | F89: 7.329443839 | G89: 92.5 | H89: 569.5547 | I89: 8.250599782 | J89: 92.5 | K89: 584.7179 | L89: 7.370229008 | M89: 92.5 | N89: 531.6035 | O89: 7.098909487 | P89: =AVERAGE(E89,H89,K89,N89) -> 568.0195 | Q89: =AVERAGE(F89,I89,L89,O89) -> 7.512295529
A90: 93.75 | B90: 580.1003 | C90: 5.006434024 | D90: 93.75 | E90: 589.9667 | F90: 7.425845147 | G90: 93.75 | H90: 570.0094 | I90: 8.216575791 | J90: 93.75 | K90: 580.4891 | L90: 7.45474373 | M90: 93.75 | N90: 534.6382 | O90: 6.579280262 | P90: =AVERAGE(E90,H90,K90,N90) -> 568.77585 | Q90: =AVERAGE(F90,I90,L90,O90) -> 7.419111232
A91: 95 | B91: 626.1901 | C91: 4.981788441 | D91: 95 | E91: 587.3021 | F91: 7.443838604 | G91: 95 | H91: 568.4936 | I91: 8.183533261 | J91: 95 | K91: 579.0503 | L91: 7.551472192 | M91: 95 | N91: 604.1864 | O91: 6.279825518 | P91: =AVERAGE(E91,H91,K91,N91) -> 584.7581 | Q91: =AVERAGE(F91,I91,L91,O91) -> 7.364667394
A92: 96.25 | B92: 641.107 | C92: 5.00959651 | D92: 96.25 | E92: 587.8692 | F92: 7.430643402 | G92: 96.25 | H92: 566.9946 | I92: 8.086695747 | J92: 96.25 | K92: 580.1544 | L92: 7.544711014 | M92: 96.25 | N92: 614.7156 | O92: 5.999018539 | P92: =AVERAGE(E92,H92,K92,N92) -> 587.43345 | Q92: =AVERAGE(F92,I92,L92,O92) -> 7.265267176
A93: 97.5 | B93: 628.5757 | C93: 5.182115594 | D93: 97.5 | E93: 576.4394 | F93: 7.47131952 | G93: 97.5 | H93: 568.5287 | I93: 7.992693566 | J93: 97.5 | K93: 586.45 | L93: 7.519193021 | M93: 97.5 | N93: 617.6923 | O93: 5.62257361 | P93: =AVERAGE(E93,H93,K93,N93) -> 587.2776 | Q93: =AVERAGE(F93,I93,L93,O93) -> 7.151444929
A94: 98.75 | B94: 611.1614 | C94: 5.468484188 | D94: 98.75 | E94: 578.2206 | F94: 7.726717557 | G94: 98.75 | H94: 573.058 | I94: 8.010141767 | J94: 98.75 | K94: 584.8768 | L94: 7.440785169 | M94: 98.75 | N94: 645.2511 | O94: 5.187568157 | P94: =AVERAGE(E94,H94,K94,N94) -> 595.351625 | Q94: =AVERAGE(F94,I94,L94,O94) -> 7.091303162
A95: 100 | B95: 616.2542 | C95: 5.463794984 | D95: 100 | E95: 582.1779 | F95: 7.821919302 | G95: 100 | H95: 573.2762 | I95: 8.006215921 | J95: 100 | K95: 575.0021 | L95: 7.540567067 | M95: 100 | N95: 661.6042 | O95: 5.017448201 | P95: =AVERAGE(E95,H95,K95,N95) -> 598.0151 | Q95: =AVERAGE(F95,I95,L95,O95) -> 7.096537623
A96: 101.25 | B96: 617.0409 | C96: 5.518429662 | D96: 101.25 | E96: 579.0074 | F96: 7.691166848 | G96: 101.25 | H96: 571.5905 | I96: 7.977208288 | J96: 101.25 | K96: 573.956 | L96: 7.667611778 | M96: 101.25 | N96: 665.4518 | O96: 4.927480916 | P96: =AVERAGE(E96,H96,K96,N96) -> 597.501425 | Q96: =AVERAGE(F96,I96,L96,O96) -> 7.065866957
A97: 102.5 | B97: 611.0262 | C97: 5.585932388 | D97: 102.5 | E97: 581.2188 | F97: 7.645038168 | G97: 102.5 | H97: 564.3005 | I97: 8.024100327 | J97: 102.5 | K97: 565.4637 | L97: 7.741984733 | M97: 102.5 | N97: 669.4998 | O97: 4.770992366 | P97: =AVERAGE(E97,H97,K97,N97) -> 595.1207 | Q97: =AVERAGE(F97,I97,L97,O97) -> 7.045528899
A98: 103.75 | B98: 626.8835 | C98: 5.369029444 | D98: 103.75 | E98: 582.4447 | F98: 7.6391494 | G98: 103.75 | H98: 563.5515 | I98: 8.245147219 | J98: 103.75 | K98: 572.8058 | L98: 7.80174482 | M98: 103.75 | N98: 684.1316 | O98: 4.573173391 | P98: =AVERAGE(E98,H98,K98,N98) -> 600.7334 | Q98: =AVERAGE(F98,I98,L98,O98) -> 7.064803708
A99: 105 | B99: 647.7479 | C99: 5.213413304 | D99: 105 | E99: 582.9158 | F99: 7.536205016 | G99: 105 | H99: 561.4558 | I99: 8.192911668 | J99: 105 | K99: 579.2308 | L99: 7.663358779 | M99: 105 | N99: 683.2047 | O99: 4.538931298 | P99: =AVERAGE(E99,H99,K99,N99) -> 601.701775 | Q99: =AVERAGE(F99,I99,L99,O99) -> 6.98285169
A100: 106.25 | B100: 638.2672 | C100: 5.327371865 | D100: 106.25 | E100: 574.2466 | F100: 7.523227917 | G100: 106.25 | H100: 566.5256 | I100: 8.061395856 | J100: 106.25 | K100: 580.5248 | L100: 7.677099237 | M100: 106.25 | N100: 686.6081 | O100: 4.493675027 | P100: =AVERAGE(E100,H100,K100,N100) -> 601.976275 | Q100: =AVERAGE(F100,I100,L100,O100) -> 6.938849509
A101: 107.5 | B101: 639.8927 | C101: 5.351472192 | D101: 107.5 | E101: 581.2365 | F101: 7.715267176 | G101: 107.5 | H101: 563.2697 | I101: 7.811014177 | J101: 107.5 | K101: 581.5016 | L101: 7.640567067 | M101: 107.5 | N101: 689.2404 | O101: 4.497491821 | P101: =AVERAGE(E101,H101,K101,N101) -> 603.81205 | Q101: =AVERAGE(F101,I101,L101,O101) -> 6.91608506
A102: 108.75 | B102: 632.6368 | C102: 5.340567067 | D102: 108.75 | E102: 580.954 | F102: 7.611123228 | G102: 108.75 | H102: 556.2286 | I102: 7.364994547 | J102: 108.75 | K102: 581.6996 | L102: 7.509269357 | M102: 108.75 | N102: 678.0219 | O102: 4.531515812 | P102: =AVERAGE(E102,H102,K102,N102) -> 599.226025 | Q102: =AVERAGE(F102,I102,L102,O102) -> 6.754225736
A103: 110 | B103: 638.3258 | C103: 5.227917121 | D103: 110 | E103: 584.3785 | F103: 7.4217012 | G103: 110 | H103: 578.0096 | I103: 7.269683751 | J103: 110 | K103: 572.2455 | L103: 7.51134133 | M103: 110 | N103: 689.955 | O103: 4.359869138 | P103: =AVERAGE(E103,H103,K103,N103) -> 606.14715 | Q103: =AVERAGE(F103,I103,L103,O103) -> 6.640648855
A104: 111.25 | B104: 646.0912 | C104: 5.132279171 | D104: 111.25 | E104: 592.3097 | F104: 7.387022901 | G104: 111.25 | H104: 593.5162 | I104: 7.334896401 | J104: 111.25 | K104: 529.1034 | L104: 7.557906216 | M104: 111.25 | N104: 696.9085 | O104: 4.298364231 | P104: =AVERAGE(E104,H104,K104,N104) -> 602.95945 | Q104: =AVERAGE(F104,I104,L104,O104) -> 6.644547437
A105: 112.5 | B105: 638.4084 | C105: 5.211232279 | D105: 112.5 | E105: 579.843 | F105: 7.450708833 | G105: 112.5 | H105: 591.355 | I105: 7.316139586 | J105: 112.5 | K105: 461.2467 | L105: 7.355834242 | M105: 112.5 | N105: 688.5614 | O105: 4.395310796 | P105: =AVERAGE(E105,H105,K105,N105) -> 580.251525 | Q105: =AVERAGE(F105,I105,L105,O105) -> 6.629498364
A106: 113.75 | B106: 626.5675 | C106: 5.351035987 | D106: 113.75 | E106: 571.3313 | F106: 7.707088332 | G106: 113.75 | H106: 582.9969 | I106: 7.367175573 | J106: 113.75 | K106: 463.5788 | L106: 7.995201745 | M106: 113.75 | N106: 692.2296 | O106: 4.359323882 | P106: =AVERAGE(E106,H106,K106,N106) -> 577.53415 | Q106: =AVERAGE(F106,I106,L106,O106) -> 6.857197383
A107: 115 | B107: 602.4825 | C107: 5.690948746 | D107: 115 | E107: 566.6969 | F107: 7.804907306 | G107: 115 | H107: 578.7126 | I107: 7.583424209 | J107: 115 | K107: 528.4785 | L107: 9.300545256 | M107: 115 | N107: 702.0953 | O107: 4.223336968 | P107: =AVERAGE(E107,H107,K107,N107) -> 593.995825 | Q107: =AVERAGE(F107,I107,L107,O107) -> 7.228053435
A108: 116.25 | B108: 586.4266 | C108: 6.117557252 | D108: 116.25 | E108: 551.0364 | F108: 7.549182116 | G108: 116.25 | H108: 582.1614 | I108: 7.756924755 | J108: 116.25 | K108: 529.2423 | L108: 9.384841876 | M108: 116.25 | N108: 529.6504 | O108: 5.188440567 | P108: =AVERAGE(E108,H108,K108,N108) -> 548.022625 | Q108: =AVERAGE(F108,I108,L108,O108) -> 7.469847328
A109: 117.5 | B109: 588.7951 | C109: 6.381679389 | D109: 117.5 | E109: 543.3529 | F109: 7.231406761 | G109: 117.5 | H109: 576.2592 | I109: 7.501308615 | J109: 117.5 | K109: 528.5245 | L109: 9.297273719 | M109: 117.5 | N109: 311.6004 | O109: 6.137949836 | P109: =AVERAGE(E109,H109,K109,N109) -> 489.93425 | Q109: =AVERAGE(F109,I109,L109,O109) -> 7.541984733
A110: 118.75 | B110: 590.398 | C110: 6.511886587 | D110: 118.75 | E110: 564.8571 | F110: 6.785605234 | G110: 118.75 | H110: 579.5895 | I110: 7.44351145 | J110: 118.75 | K110: 516.8316 | L110: 8.600545256 | M110: 118.75 | N110: 587.8043 | O110: 6.629007634 | P110: =AVERAGE(E110,H110,K110,N110) -> 562.270625 | Q110: =AVERAGE(F110,I110,L110,O110) -> 7.364667394
A111: 120 | B111: 592.5684 | C111: 6.605125409 | D111: 120 | E111: 595.6134 | F111: 6.224972737 | G111: 120 | H111: 575.2308 | I111: 7.618538713 | J111: 120 | K111: 537.4358 | L111: 7.938931298 | M111: 120 | N111: 576.6601 | O111: 7.06695747 | P111: =AVERAGE(E111,H111,K111,N111) -> 571.235025 | Q111: =AVERAGE(F111,I111,L111,O111) -> 7.212350055
A112: 121.25 | B112: 582.9907 | C112: 6.642857143 | D112: 121.25 | E112: 628.5299 | F112: 5.849400218 | G112: 121.25 | H112: 533.4655 | I112: 7.42693566 | J112: 121.25 | K112: 563.2252 | L112: 7.575136314 | M112: 121.25 | N112: 560.1221 | O112: 7.536968375 | P112: =AVERAGE(E112,H112,K112,N112) -> 571.335675 | Q112: =AVERAGE(F112,I112,L112,O112) -> 7.097110142
A113: 122.5 | B113: 587.2064 | C113: 6.564667394 | D113: 122.5 | E113: 600.1465 | F113: 5.959214831 | G113: 122.5 | H113: 458.8973 | I113: 7.612977099 | J113: 122.5 | K113: 582.8641 | L113: 7.484405671 | M113: 122.5 | N113: 543.1725 | O113: 7.942202835 | P113: =AVERAGE(E113,H113,K113,N113) -> 546.2701 | Q113: =AVERAGE(F113,I113,L113,O113) -> 7.249700109
A114: 123.75 | B114: 586.1051 | C114: 6.391057797 | D114: 123.75 | E114: 564.129 | F114: 6.490730643 | G114: 123.75 | H114: 539.7523 | I114: 8.952344602 | J114: 123.75 | K114: 579.3205 | L114: 7.459214831 | M114: 123.75 | N114: 536.5886 | O114: 8.518974918 | P114: =AVERAGE(E114,H114,K114,N114) -> 554.9476 | Q114: =AVERAGE(F114,I114,L114,O114) -> 7.855316249
A115: 125 | B115: 604.2095 | C115: 6.267066521 | D115: 125 | E115: 595.979 | F115: 6.651908397 | G115: 125 | H115: 493.6331 | I115: 7.786041439 | J115: 125 | K115: 577.2975 | L115: 7.49912759 | M115: 125 | N115: 532.1356 | O115: 8.815049073 | P115: =AVERAGE(E115,H115,K115,N115) -> 549.7613 | Q115: =AVERAGE(F115,I115,L115,O115) -> 7.688031625
A116: 126.25 | B116: 591.3121 | C116: 6.19476554 | D116: 126.25 | E116: 590.5011 | F116: 6.16346783 | G116: 126.25 | H116: 531.5148 | I116: 7.15474373 | J116: 126.25 | K116: 578.574 | L116: 7.62519084 | M116: 126.25 | N116: 526.7109 | O116: 9.058342421 | P116: =AVERAGE(E116,H116,K116,N116) -> 556.8252 | Q116: =AVERAGE(F116,I116,L116,O116) -> 7.500436205
A117: 127.5 | B117: 612.52 | C117: 5.974482007 | D117: 127.5 | E117: 620.2732 | F117: 5.605343511 | G117: 127.5 | H117: 541.7562 | I117: 6.410905125 | J117: 127.5 | K117: 561.2961 | L117: 7.640130862 | M117: 127.5 | N117: 524.5461 | O117: 8.999781897 | P117: =AVERAGE(E117,H117,K117,N117) -> 561.9679 | Q117: =AVERAGE(F117,I117,L117,O117) -> 7.164040349
A118: 128.75 | B118: 611.21 | C118: 5.828571429 | D118: 128.75 | E118: 644.4197 | F118: 5.297164667 | G118: 128.75 | H118: 582.3128 | I118: 5.70436205 | J118: 128.75 | K118: 511.9399 | L118: 7.783206107 | M118: 128.75 | N118: 490.1334 | O118: 7.782333697 | P118: =AVERAGE(E118,H118,K118,N118) -> 557.20145 | Q118: =AVERAGE(F118,I118,L118,O118) -> 6.64176663
A119: 130 | B119: 624.214 | C119: 5.547437296 | D119: 130 | E119: 655.0757 | F119: 5.223227917 | G119: 130 | H119: 638.044 | I119: 5.476008724 | J119: 130 | K119: 473.0964 | L119: 8.364013086 | M119: 130 | N119: 545.6347 | O119: 6.977753544 | P119: =AVERAGE(E119,H119,K119,N119) -> 577.9627 | Q119: =AVERAGE(F119,I119,L119,O119) -> 6.510250818
A120: 131.25 | B120: 638.6553 | C120: 5.39214831 | D120: 131.25 | E120: 652.3384 | F120: 5.289203926 | G120: 131.25 | H120: 621.8659 | I120: 5.704034896 | J120: 131.25 | K120: 429.2872 | L120: 8.68953108 | M120: 131.25 | N120: 582.1559 | O120: 6.600327154 | P120: =AVERAGE(E120,H120,K120,N120) -> 571.41185 | Q120: =AVERAGE(F120,I120,L120,O120) -> 6.570774264
A121: 132.5 | B121: 624.5197 | C121: 5.404034896 | D121: 132.5 | E121: 625.1405 | F121: 5.518429662 | G121: 132.5 | H121: 616.1522 | I121: 5.938386041 | J121: 132.5 | K121: 345.0839 | L121: 8.746019629 | M121: 132.5 | N121: 599.0784 | O121: 6.187459106 | P121: =AVERAGE(E121,H121,K121,N121) -> 546.36375 | Q121: =AVERAGE(F121,I121,L121,O121) -> 6.59757361
A122: 133.75 | B122: 618.2005 | C122: 5.473718648 | D122: 133.75 | E122: 596.0308 | F122: 5.948636859 | G122: 133.75 | H122: 612.6659 | I122: 6.167066521 | J122: 133.75 | K122: 357.2288 | L122: 12.33827699 | M122: 133.75 | N122: 596.3569 | O122: 5.646673937 | P122: =AVERAGE(E122,H122,K122,N122) -> 540.5706 | Q122: =AVERAGE(F122,I122,L122,O122) -> 7.525163577
A123: 135 | B123: 628.7975 | C123: 5.519629226 | D123: 135 | E123: 592.0944 | F123: 6.301526718 | G123: 135 | H123: 604.5054 | I123: 6.278625954 | J123: 135 | K123: 334.5725 | L123: 14.43053435 | M123: 135 | N123: 649.3637 | O123: 5.099345692 | P123: =AVERAGE(E123,H123,K123,N123) -> 545.134 | Q123: =AVERAGE(F123,I123,L123,O123) -> 8.027508179
A124: 136.25 | B124: 626.6145 | C124: 5.536968375 | D124: 136.25 | E124: 569.5893 | F124: 6.870992366 | G124: 136.25 | H124: 576.2588 | I124: 6.561504907 | J124: 136.25 | K124: 296.1192 | L124: 15.79073064 | M124: 136.25 | N124: 654.6606 | O124: 4.92693566 | P124: =AVERAGE(E124,H124,K124,N124) -> 524.156975 | Q124: =AVERAGE(F124,I124,L124,O124) -> 8.537540894
A125: 137.5 | B125: 630.9021 | C125: 5.476226827 | D125: 137.5 | E125: 567.7668 | F125: 7.256815703 | G125: 137.5 | H125: 598.6599 | I125: 6.847437296 | J125: 137.5 | K125: 270.6294 | L125: 19.37840785 | M125: 137.5 | N125: 671.1336 | O125: 4.656379498 | P125: =AVERAGE(E125,H125,K125,N125) -> 527.047425 | Q125: =AVERAGE(F125,I125,L125,O125) -> 9.534760087
A126: 138.75 | B126: 638.2742 | C126: 5.315594329 | D126: 138.75 | E126: 483.2838 | F126: 7.418756816 | G126: 138.75 | H126: 600.4972 | I126: 6.922246456 | J126: 138.75 | K126: 250.0026 | L126: 24.60632497 | M126: 138.75 | N126: 680.9852 | O126: 4.495856052 | P126: =AVERAGE(E126,H126,K126,N126) -> 503.6922 | Q126: =AVERAGE(F126,I126,L126,O126) -> 10.86079607
A127: 140 | B127: 643.9316 | C127: 5.243184297 | D127: 140 | E127: 507.3474 | F127: 8.905125409 | G127: 140 | H127: 583.5022 | I127: 6.982006543 | J127: 140 | K127: 241.1036 | L127: 26.32486369 | M127: 140 | N127: 670.3749 | O127: 4.612868048 | P127: =AVERAGE(E127,H127,K127,N127) -> 500.582025 | Q127: =AVERAGE(F127,I127,L127,O127) -> 11.70621592
A128: 141.25 | B128: 635.3059 | C128: 5.284078517 | D128: 141.25 | E128: 468.579 | F128: 8.995856052 | G128: 141.25 | H128: 580.7418 | I128: 7.13740458 | J128: 141.25 | K128: 233.4022 | L128: 27.13293348 | M128: 141.25 | N128: 648.6072 | O128: 4.957797165 | P128: =AVERAGE(E128,H128,K128,N128) -> 482.83255 | Q128: =AVERAGE(F128,I128,L128,O128) -> 12.05599782
A129: 142.5 | B129: 638.3192 | C129: 5.175790622 | D129: 142.5 | E129: 447.1206 | F129: 9.719956379 | G129: 142.5 | H129: 583.7681 | I129: 7.204252999 | J129: 142.5 | K129: 227.0351 | L129: 27.47524537 | M129: 142.5 | N129: 647.4363 | O129: 5.173500545 | P129: =AVERAGE(E129,H129,K129,N129) -> 476.340025 | Q129: =AVERAGE(F129,I129,L129,O129) -> 12.39323882
A130: 143.75 | B130: 648.5616 | C130: 5.069356598 | D130: 143.75 | E130: 470.3602 | F130: 11.12988004 | G130: 143.75 | H130: 579.1266 | I130: 7.431406761 | J130: 143.75 | K130: 224.846 | L130: 28.20992366 | M130: 143.75 | N130: 621.6093 | O130: 5.572519084 | P130: =AVERAGE(E130,H130,K130,N130) -> 473.985525 | Q130: =AVERAGE(F130,I130,L130,O130) -> 13.08593239
A131: 145 | B131: 639.7863 | C131: 5.081243184 | D131: 145 | E131: 471.6413 | F131: 11.49443839 | G131: 145 | H131: 579.4914 | I131: 7.536641221 | J131: 145 | K131: 226.0906 | L131: 28.67328244 | M131: 145 | N131: 637.2944 | O131: 5.639912759 | P131: =AVERAGE(E131,H131,K131,N131) -> 478.629425 | Q131: =AVERAGE(F131,I131,L131,O131) -> 13.3360687
A132: 146.25 | B132: 619.4182 | C132: 5.300109051 | D132: 146.25 | E132: 456.2772 | F132: 10.8134133 | G132: 146.25 | H132: 576.9871 | I132: 7.494547437 | J132: 146.25 | K132: 224.1514 | L132: 29.09432933 | M132: 146.25 | N132: 640.1059 | O132: 5.525736096 | P132: =AVERAGE(E132,H132,K132,N132) -> 474.3804 | Q132: =AVERAGE(F132,I132,L132,O132) -> 13.23200654
A133: 147.5 | B133: 631.0644 | C133: 5.365539804 | D133: 147.5 | E133: 452.303 | F133: 10.98713195 | G133: 147.5 | H133: 577.8523 | I133: 7.54525627 | J133: 147.5 | K133: 222.5727 | L133: 29.00806979 | M133: 147.5 | N133: 650.1954 | O133: 5.358669575 | P133: =AVERAGE(E133,H133,K133,N133) -> 475.73085 | Q133: =AVERAGE(F133,I133,L133,O133) -> 13.2247819
A134: 148.75 | B134: 637.5294 | C134: 5.23565976 | D134: 148.75 | E134: 466.3328 | F134: 11.50229008 | G134: 148.75 | H134: 578.1023 | I134: 7.633151581 | J134: 148.75 | K134: 218.5703 | L134: 29.78516903 | M134: 148.75 | N134: 648.02 | O134: 5.212649945 | P134: =AVERAGE(E134,H134,K134,N134) -> 477.75635 | Q134: =AVERAGE(F134,I134,L134,O134) -> 13.53331516
A135: 150 | B135: 641.082 | C135: 5.17306434 | D135: 150 | E135: 472.354 | F135: 11.26292257 | G135: 150 | H135: 579.3635 | I135: 7.691166848 | J135: 150 | K135: 215.9461 | L135: 30.88266085 | M135: 150 | N135: 668.7348 | O135: 5.001853871 | P135: =AVERAGE(E135,H135,K135,N135) -> 484.0996 | Q135: =AVERAGE(F135,I135,L135,O135) -> 13.70965104
A136: 151.25 | B136: 633.2056 | C136: 5.257797165 | D136: 151.25 | E136: 477.6643 | F136: 10.98974918 | G136: 151.25 | H136: 579.9207 | I136: 7.695310796 | J136: 151.25 | K136: 213.0874 | L136: 32.25877863 | M136: 151.25 | N136: 670.1061 | O136: 4.968375136 | P136: =AVERAGE(E136,H136,K136,N136) -> 485.194625 | Q136: =AVERAGE(F136,I136,L136,O136) -> 13.97805344
A137: 152.5 | B137: 630.5434 | C137: 5.278080698 | D137: 152.5 | E137: 478.0625 | F137: 10.76881134 | G137: 152.5 | H137: 580.07 | I137: 7.683533261 | J137: 152.5 | K137: 212.1263 | L137: 33.60501636 | M137: 152.5 | N137: 666.4227 | O137: 4.950054526 | P137: =AVERAGE(E137,H137,K137,N137) -> 484.170375 | Q137: =AVERAGE(F137,I137,L137,O137) -> 14.25185387
A138: 153.75 | B138: 627.4082 | C138: 5.226172301 | D138: 153.75 | E138: 458.4919 | F138: 10.54711014 | G138: 153.75 | H138: 576.3957 | I138: 7.72606325 | J138: 153.75 | K138: 213.7477 | L138: 33.9695747 | M138: 153.75 | N138: 669.219 | O138: 4.885387132 | P138: =AVERAGE(E138,H138,K138,N138) -> 479.463575 | Q138: =AVERAGE(F138,I138,L138,O138) -> 14.28203381
A139: 155 | B139: 621.2473 | C139: 5.289422028 | D139: 155 | E139: 448.0291 | F139: 11.29880044 | G139: 155 | H139: 571.9919 | I139: 7.556597601 | J139: 155 | K139: 213.8374 | L139: 33.83184297 | M139: 155 | N139: 621.1747 | O139: 5.216793893 | P139: =AVERAGE(E139,H139,K139,N139) -> 463.758275 | Q139: =AVERAGE(F139,I139,L139,O139) -> 14.47600872
A140: 156.25 | B140: 634.2581 | C140: 5.295201745 | D140: 156.25 | E140: 453.8351 | F140: 12.08124318 | G140: 156.25 | H140: 584.5651 | I140: 7.511886587 | J140: 156.25 | K140: 218.1088 | L140: 32.84220284 | M140: 156.25 | N140: 606.5539 | O140: 5.686259542 | P140: =AVERAGE(E140,H140,K140,N140) -> 465.765725 | Q140: =AVERAGE(F140,I140,L140,O140) -> 14.53039804
A141: 157.5 | B141: 640.8418 | C141: 5.240348964 | D141: 157.5 | E141: 449.2411 | F141: 12.22322792 | G141: 157.5 | H141: 583.2339 | I141: 7.496183206 | J141: 157.5 | K141: 221.5623 | L141: 32.92399128 | M141: 157.5 | N141: 601.2902 | O141: 6.020174482 | P141: =AVERAGE(E141,H141,K141,N141) -> 463.831875 | Q141: =AVERAGE(F141,I141,L141,O141) -> 14.66589422
A142: 158.75 | B142: 604.8107 | C142: 5.482006543 | D142: 158.75 | E142: 448.4858 | F142: 12.55768811 | G142: 158.75 | H142: 584.7651 | I142: 7.454634678 | J142: 158.75 | K142: 219.9996 | L142: 32.63980371 | M142: 158.75 | N142: 603.8667 | O142: 6.378844057 | P142: =AVERAGE(E142,H142,K142,N142) -> 464.2793 | Q142: =AVERAGE(F142,I142,L142,O142) -> 14.75774264
A143: 160 | B143: 617.3459 | C143: 5.656270447 | D143: 160 | E143: 447.2101 | F143: 12.70654308 | G143: 160 | H143: 580.1598 | I143: 7.223882225 | J143: 160 | K143: 220.11 | L143: 32.46597601 | M143: 160 | N143: 596.9063 | O143: 6.588767721 | P143: =AVERAGE(E143,H143,K143,N143) -> 461.09655 | Q143: =AVERAGE(F143,I143,L143,O143) -> 14.74629226
A144: 161.25 | B144: 621.5735 | C144: 5.661504907 | D144: 161.25 | E144: 441.7835 | F144: 11.40839695 | G144: 161.25 | H144: 595.7422 | I144: 7.031624864 | J144: 161.25 | K144: 221.9208 | L144: 32.33653217 | M144: 161.25 | N144: 578.6802 | O144: 6.964667394 | P144: =AVERAGE(E144,H144,K144,N144) -> 459.531675 | Q144: =AVERAGE(F144,I144,L144,O144) -> 14.43530534
A145: 162.5 | B145: 603.4323 | C145: 5.768157034 | D145: 162.5 | E145: 461.9003 | F145: 11.64023991 | G145: 162.5 | H145: 595.9842 | I145: 6.815376227 | J145: 162.5 | K145: 221.7727 | L145: 32.57666303 | M145: 162.5 | N145: 557.5458 | O145: 7.368266085 | P145: =AVERAGE(E145,H145,K145,N145) -> 459.30075 | Q145: =AVERAGE(F145,I145,L145,O145) -> 14.60013631
A146: 163.75 | B146: 608.5238 | C146: 5.754416576 | D146: 163.75 | E146: 464.1645 | F146: 11.58615049 | G146: 163.75 | H146: 602.4882 | I146: 6.718211559 | J146: 163.75 | K146: 223.9369 | L146: 31.82388222 | M146: 163.75 | N146: 551.5442 | O146: 7.83304253 | P146: =AVERAGE(E146,H146,K146,N146) -> 460.53345 | Q146: =AVERAGE(F146,I146,L146,O146) -> 14.4903217
A147: 165 | B147: 607.7008 | C147: 5.805452563 | D147: 165 | E147: 462.6593 | F147: 11.19890949 | G147: 165 | H147: 603.2741 | I147: 6.672082879 | J147: 165 | K147: 234.7535 | L147: 25.38625954 | M147: 165 | N147: 553.4664 | O147: 8.2608506 | P147: =AVERAGE(E147,H147,K147,N147) -> 463.538325 | Q147: =AVERAGE(F147,I147,L147,O147) -> 12.87952563
A148: 166.25 | B148: 605.534 | C148: 5.944056707 | D148: 166.25 | E148: 466.7378 | F148: 11.00414395 | G148: 166.25 | H148: 612.354 | I148: 6.51308615 | J148: 166.25 | K148: 266.0877 | L148: 15.55725191 | M148: 166.25 | N148: 549.7585 | O148: 8.452453653 | P148: =AVERAGE(E148,H148,K148,N148) -> 473.7345 | Q148: =AVERAGE(F148,I148,L148,O148) -> 10.38173391
A149: 167.5 | B149: 608.4 | C149: 5.90697928 | D149: 167.5 | E149: 473.4212 | F149: 10.58091603 | G149: 167.5 | H149: 615.1948 | I149: 6.320610687 | J149: 167.5 | K149: 303.8093 | L149: 13.20817884 | M149: 167.5 | N149: 538.8285 | O149: 8.60610687 | P149: =AVERAGE(E149,H149,K149,N149) -> 482.81345 | Q149: =AVERAGE(F149,I149,L149,O149) -> 9.678953108
A150: 168.75 | B150: 608.759 | C150: 5.926717557 | D150: 168.75 | E150: 486.721 | F150: 10.55921483 | G150: 168.75 | H150: 621.6506 | I150: 6.070774264 | J150: 168.75 | K150: 319.1477 | L150: 8.992039258 | M150: 168.75 | N150: 541.0843 | O150: 8.805343511 | P150: =AVERAGE(E150,H150,K150,N150) -> 492.1509 | Q150: =AVERAGE(F150,I150,L150,O150) -> 8.606842966
A151: 170 | B151: 612.9149 | C151: 5.927589967 | D151: 170 | E151: 493.1721 | F151: 10.15496183 | G151: 170 | H151: 627.561 | I151: 5.955398037 | J151: 170 | K151: 415.4641 | L151: 9.853653217 | M151: 170 | N151: 529.5235 | O151: 8.861832061 | P151: =AVERAGE(E151,H151,K151,N151) -> 516.430175 | Q151: =AVERAGE(F151,I151,L151,O151) -> 8.706461287
A152: 171.25 | B152: 626.085 | C152: 5.791712105 | D152: 171.25 | E152: 503.6341 | F152: 9.905888768 | G152: 171.25 | H152: 625.124 | I152: 5.930098146 | J152: 171.25 | K152: 456.8588 | L152: 9.527480916 | M152: 171.25 | N152: 532.88 | O152: 9.138713195 | P152: =AVERAGE(E152,H152,K152,N152) -> 529.624225 | Q152: =AVERAGE(F152,I152,L152,O152) -> 8.625545256
A153: 172.5 | B153: 596.4091 | C153: 5.916684842 | D153: 172.5 | E153: 512.472 | F153: 9.890621592 | G153: 172.5 | H153: 632.5525 | I153: 5.902290076 | J153: 172.5 | K153: 490.8993 | L153: 8.751035987 | M153: 172.5 | N153: 537.1977 | O153: 8.943293348 | P153: =AVERAGE(E153,H153,K153,N153) -> 543.280375 | Q153: =AVERAGE(F153,I153,L153,O153) -> 8.371810251
A154: 173.75 | B154: 604.1291 | C154: 6.073609597 | D154: 173.75 | E154: 508.9645 | F154: 9.343620502 | G154: 173.75 | H154: 630.9577 | I154: 5.928789531 | J154: 173.75 | K154: 523.0851 | L154: 8.342311887 | M154: 173.75 | N154: 544.343 | O154: 8.878407852 | P154: =AVERAGE(E154,H154,K154,N154) -> 551.837575 | Q154: =AVERAGE(F154,I154,L154,O154) -> 8.123282443
A155: 175 | B155: 607.7278 | C155: 6.077099237 | D155: 175 | E155: 521.6748 | F155: 9.202944384 | G155: 175 | H155: 619.5634 | I155: 5.899781897 | J155: 175 | K155: 536.8219 | L155: 7.775463468 | M155: 175 | N155: 543.4797 | O155: 8.746019629 | P155: =AVERAGE(E155,H155,K155,N155) -> 555.38495 | Q155: =AVERAGE(F155,I155,L155,O155) -> 7.906052345
A156: 176.25 | B156: 603.0251 | C156: 6.250599782 | D156: 176.25 | E156: 530.1659 | F156: 9.217557252 | G156: 176.25 | H156: 635.8434 | I156: 5.752344602 | J156: 176.25 | K156: 563.6403 | L156: 7.296837514 | M156: 176.25 | N156: 545.959 | O156: 8.549073064 | P156: =AVERAGE(E156,H156,K156,N156) -> 568.90215 | Q156: =AVERAGE(F156,I156,L156,O156) -> 7.703953108
A157: 177.5 | B157: 607.1363 | C157: 6.247437296 | D157: 177.5 | E157: 526.8121 | F157: 8.807415485 | G157: 177.5 | H157: 643.0464 | I157: 5.693565976 | J157: 177.5 | K157: 569.4356 | L157: 6.85561614 | M157: 177.5 | N157: 552.301 | O157: 8.450926936 | P157: =AVERAGE(E157,H157,K157,N157) -> 572.898775 | Q157: =AVERAGE(F157,I157,L157,O157) -> 7.451881134
A158: 178.75 | B158: 592.7792 | C158: 6.251145038 | D158: 178.75 | E158: 538.1575 | F158: 8.52955289 | G158: 178.75 | H158: 643.3144 | I158: 5.699236641 | J158: 178.75 | K158: 598.5877 | L158: 6.303707743 | M158: 178.75 | N158: 553.3738 | O158: 8.319738277 | P158: =AVERAGE(E158,H158,K158,N158) -> 583.35835 | Q158: =AVERAGE(F158,I158,L158,O158) -> 7.213058888
A159: 180 | B159: 588.0932 | C159: 6.171428571 | D159: 180 | E159: 537.2858 | F159: 8.162922574 | G159: 180 | H159: 636.7758 | I159: 5.67568157 | J159: 180 | K159: 619.3297 | L159: 5.957688113 | M159: 180 | N159: 557.5097 | O159: 8.249182116 | P159: =AVERAGE(E159,H159,K159,N159) -> 587.72525 | Q159: =AVERAGE(F159,I159,L159,O159) -> 7.011368593
A160: 181.25 | B160: 611.4426 | C160: 5.919193021 | D160: 181.25 | E160: 547.847 | F160: 8.124645583 | G160: 181.25 | H160: 640.312 | I160: 5.563685932 | J160: 181.25 | K160: 632.2498 | L160: 5.634460196 | M160: 181.25 | N160: 554.2681 | O160: 7.919738277 | P160: =AVERAGE(E160,H160,K160,N160) -> 593.669225 | Q160: =AVERAGE(F160,I160,L160,O160) -> 6.810632497
A161: 182.5 | B161: 621.8233 | C161: 5.794002181 | D161: 182.5 | E161: 554.4542 | F161: 8.212431843 | G161: 182.5 | H161: 638.2874 | I161: 5.3912759 | J161: 182.5 | K161: 641.6328 | L161: 5.384623773 | M161: 182.5 | N161: 568.8174 | O161: 7.591821156 | P161: =AVERAGE(E161,H161,K161,N161) -> 600.79795 | Q161: =AVERAGE(F161,I161,L161,O161) -> 6.645038168
A162: 183.75 | B162: 629.4552 | C162: 5.716684842 | D162: 183.75 | E162: 557.1941 | F162: 7.931188659 | G162: 183.75 | H162: 660.6864 | I162: 5.154416576 | J162: 183.75 | K162: 650.0195 | L162: 5.158560523 | M162: 183.75 | N162: 578.8309 | O162: 7.395419847 | P162: =AVERAGE(E162,H162,K162,N162) -> 611.682725 | Q162: =AVERAGE(F162,I162,L162,O162) -> 6.409896401
A163: 185 | B163: 626.3078 | C163: 5.694111232 | D163: 185 | E163: 573.6239 | F163: 7.87742639 | G163: 185 | H163: 662.0084 | I163: 5.062268266 | J163: 185 | K163: 661.8199 | L163: 4.887022901 | M163: 185 | N163: 581.9895 | O163: 7.12955289 | P163: =AVERAGE(E163,H163,K163,N163) -> 619.860425 | Q163: =AVERAGE(F163,I163,L163,O163) -> 6.239067612
A164: 186.25 | B164: 615.339 | C164: 5.734133043 | D164: 186.25 | E164: 574.1184 | F164: 7.722246456 | G164: 186.25 | H164: 664.4372 | I164: 4.883206107 | J164: 186.25 | K164: 673.2686 | L164: 4.680806979 | M164: 186.25 | N164: 591.0259 | O164: 6.845801527 | P164: =AVERAGE(E164,H164,K164,N164) -> 625.712525 | Q164: =AVERAGE(F164,I164,L164,O164) -> 6.033015267
A165: 187.5 | B165: 613.4012 | C165: 5.701090513 | D165: 187.5 | E165: 574.6359 | F165: 7.453762268 | G165: 187.5 | H165: 668.2558 | I165: 4.754525627 | J165: 187.5 | K165: 675.2305 | L165: 4.531188659 | M165: 187.5 | N165: 604.4388 | O165: 6.547546347 | P165: =AVERAGE(E165,H165,K165,N165) -> 630.64025 | Q165: =AVERAGE(F165,I165,L165,O165) -> 5.821755725
A166: 188.75 | B166: 603.2531 | C166: 5.805670665 | D166: 188.75 | E166: 583.7578 | F166: 7.378080698 | G166: 188.75 | H166: 665.2745 | I166: 4.715267176 | J166: 188.75 | K166: 688.8914 | L166: 4.34002181 | M166: 188.75 | N166: 615.4124 | O166: 6.408396947 | P166: =AVERAGE(E166,H166,K166,N166) -> 638.334025 | Q166: =AVERAGE(F166,I166,L166,O166) -> 5.710441658
A167: 190 | B167: 585.2469 | C167: 6.119193021 | D167: 190 | E167: 580.2113 | F167: 7.278844057 | G167: 190 | H167: 684.2032 | I167: 4.478625954 | J167: 190 | K167: 694.4452 | L167: 4.252453653 | M167: 190 | N167: 612.433 | O167: 6.278189749 | P167: =AVERAGE(E167,H167,K167,N167) -> 642.823175 | Q167: =AVERAGE(F167,I167,L167,O167) -> 5.572028353
A168: 191.25 | B168: 580.9052 | C168: 6.435550709 | D168: 191.25 | E168: 589.1401 | F168: 7.189422028 | G168: 191.25 | H168: 693.4503 | I168: 4.319629226 | J168: 191.25 | K168: 696.9577 | L168: 4.187677208 | M168: 191.25 | N168: 601.4362 | O168: 6.237731734 | P168: =AVERAGE(E168,H168,K168,N168) -> 645.246075 | Q168: =AVERAGE(F168,I168,L168,O168) -> 5.483615049
A169: 192.5 | B169: 576.5057 | C169: 6.669029444 | D169: 192.5 | E169: 584.7121 | F169: 7.192584515 | G169: 192.5 | H169: 696.7332 | I169: 4.225845147 | J169: 192.5 | K169: 701.0498 | L169: 4.118865867 | M169: 192.5 | N169: 595.5249 | O169: 6.446237732 | P169: =AVERAGE(E169,H169,K169,N169) -> 644.505 | Q169: =AVERAGE(F169,I169,L169,O169) -> 5.495883315
A170: 193.75 | B170: 553.4504 | C170: 6.772628135 | D170: 193.75 | E170: 575.6167 | F170: 7.276444929 | G170: 193.75 | H170: 696.9779 | I170: 4.134133043 | J170: 193.75 | K170: 698.4023 | L170: 4.07742639 | M170: 193.75 | N170: 617.7647 | O170: 6.515703381 | P170: =AVERAGE(E170,H170,K170,N170) -> 647.1904 | Q170: =AVERAGE(F170,I170,L170,O170) -> 5.500926936
A171: 195 | B171: 556.4715 | C171: 6.861941112 | D171: 195 | E171: 581.4147 | F171: 7.267393675 | G171: 195 | H171: 707.3326 | I171: 3.948091603 | J171: 195 | K171: 711.0309 | L171: 3.864667394 | M171: 195 | N171: 622.6158 | O171: 6.421592148 | P171: =AVERAGE(E171,H171,K171,N171) -> 655.5985 | Q171: =AVERAGE(F171,I171,L171,O171) -> 5.375436205
A172: 196.25 | B172: 347.6656 | C172: 6.214721919 | D172: 196.25 | E172: 582.5969 | F172: 7.276881134 | G172: 196.25 | H172: 715.3967 | I172: 3.821264995 | J172: 196.25 | K172: 708.8151 | L172: 3.857906216 | M172: 196.25 | N172: 604.1337 | O172: 6.419083969 | P172: =AVERAGE(E172,H172,K172,N172) -> 652.7356 | Q172: =AVERAGE(F172,I172,L172,O172) -> 5.343784079
A173: 197.5 | B173: 507.0948 | C173: 5.365976009 | G173: 197.5 | H173: 718.3521 | I173: 3.744929117
G174: 198.75 | H174: 722.9003 | I174: 3.656597601

Sheet Albedo details
A1: ='Global data DD.MM.YY'!A1 -> Snow Pits Dome Fuji 2018/2019 | B1: SSA data, exported from the ICE Cube software
A2: ='Global data DD.MM.YY'!A2 -> Potential use of the pit SP: Snow Physic R: Radar ST: Satellite MB: Mass Balance | B2: ='Global data DD.MM.YY'!B2 -> SP
A3: ='Global data DD.MM.YY'!A3 -> Closest Point on Japanese Traverse | B3: ='Global data DD.MM.YY'!B3 -> MD302
A4: ='Global data DD.MM.YY'!A4 -> South position (decimal) | B4: ='Global data DD.MM.YY'!B4 -> 73.456443
A5: ='Global data DD.MM.YY'!A5 -> East position (decimal) | B5: ='Global data DD.MM.YY'!B5 -> 43.209434
A6: ='Global data DD.MM.YY'!A6 -> Altitude (m a.s.l.) | B6: ='Global data DD.MM.YY'!B6 -> 0
A7: ='Global data DD.MM.YY'!A7 -> Date (DD.MM.YY) | B7: ='Global data DD.MM.YY'!B7 -> 28.11.18
A8: ='Global data DD.MM.YY'!A8 -> Time UTC start | B8: ='Global data DD.MM.YY'!B8 -> 18:00:00
A9: ='Global data DD.MM.YY'!A9 -> Time UTC end | B9: ='Global data DD.MM.YY'!B9 -> 19:30:00
A10: ='Global data DD.MM.YY'!A10 -> Observer(s) | B10: ='Global data DD.MM.YY'!B10 -> JCG
A11: ='Global data DD.MM.YY'!A11 -> General comments (weather, clouds, other remarks) | B11: no cloud, blue sky, but albedo was just a test and was measured close to a truck, so shadow effects are just too strong

Sheet Snow surface variability details
A1: ='Global data DD.MM.YY'!A1 -> Snow Pits Dome Fuji 2018/2019 | B1: SSA data, exported from the ICE Cube software
A2: ='Global data DD.MM.YY'!A2 -> Potential use of the pit SP: Snow Physic R: Radar ST: Satellite MB: Mass Balance | B2: ='Global data DD.MM.YY'!B2 -> SP
A3: ='Global data DD.MM.YY'!A3 -> Closest Point on Japanese Traverse | B3: ='Global data DD.MM.YY'!B3 -> MD302
A4: ='Global data DD.MM.YY'!A4 -> South position (decimal) | B4: ='Global data DD.MM.YY'!B4 -> 73.456443
A5: ='Global data DD.MM.YY'!A5 -> East position (decimal) | B5: ='Global data DD.MM.YY'!B5 -> 43.209434
A6: ='Global data DD.MM.YY'!A6 -> Altitude (m a.s.l.) | B6: ='Global data DD.MM.YY'!B6 -> 0
A7: ='Global data DD.MM.YY'!A7 -> Date (DD.MM.YY) | B7: ='Global data DD.MM.YY'!B7 -> 28.11.18
A8: ='Global data DD.MM.YY'!A8 -> Time UTC start | B8: ='Global data DD.MM.YY'!B8 -> 18:00:00
A9: ='Global data DD.MM.YY'!A9 -> Time UTC end | B9: ='Global data DD.MM.YY'!B9 -> 19:30:00
A10: ='Global data DD.MM.YY'!A10 -> Observer(s) | B10: ='Global data DD.MM.YY'!B10 -> JCG
A11: ='Global data DD.MM.YY'!A11 -> General comments (weather, clouds, other remarks)
